[Event "49th Biel Juniors Challenge"]
[Site "Biel"]
[Date "2016.07.25"]
[Round "5"]
[White "Rambaldi, Francesco"]
[Black "Studer, Noel"]
[Result "1-0"]
[ECO "C11"]
[WhiteElo "2544"]
[BlackElo "2462"]
[PlyCount "129"]
[EventDate "2016.??.??"]
[EventCountry "SUI"]
[Source "ChessBase"]
[TimeControl "900+5"]

1. e4 {[%emt 0:00:00]} e6 {[%emt 0:00:00]} 2. d4 {[%emt 0:00:00]} d5 {[%emt 0:
00:00]} 3. Nc3 {[%emt 0:00:00]} Nf6 {[%emt 0:00:00]} 4. e5 {[%emt 0:00:00]}
Nfd7 {[%emt 0:00:00]} 5. f4 {[%emt 0:00:00]} c5 {[%emt 0:00:00]} 6. Nf3 {
[%emt 0:00:00]} Nc6 {[%emt 0:00:00]} 7. Be3 {[%emt 0:00:00]} a6 {[%emt 0:00:00]
} 8. Qd2 {[%emt 0:00:00]} b5 {[%emt 0:00:00]} 9. a3 {[%emt 0:00:00]} Qa5 {
[%emt 0:00:00]} 10. Be2 {[%emt 0:00:00]} b4 {[%emt 0:00:00]} 11. Nd1 {[%emt 0:
00:00]} Rb8 {[%emt 0:00:00]} 12. c3 {[%emt 0:00:00]} c4 {[%emt 0:00:00]} 13.
O-O {[%emt 0:00:00]} bxa3 {[%emt 0:00:00]} 14. bxa3 {[%emt 0:00:00]} Rb3 {
[%emt 0:00:00]} 15. a4 {[%emt 0:00:00]} Nb6 {[%emt 0:00:00]} 16. Qc2 {[%emt 0:
00:00]} Ra3 {[%emt 0:00:00]} 17. Rxa3 {[%emt 0:00:00]} Bxa3 {[%emt 0:00:00]}
18. Bd2 {[%emt 0:00:00]} Qxa4 {[%emt 0:00:00]} 19. Qb1 {[%emt 0:00:00]} Qb3 {
[%emt 0:00:00]} 20. Qa1 {[%emt 0:00:00]} Na4 {[%emt 0:00:12]} 21. Be1 {[%emt 0:
00:00]} Be7 {[%emt 0:00:00]} 22. f5 {[%emt 0:00:00]} exf5 {[%emt 0:03:29]} 23.
Ne3 {[%emt 0:00:00]} Nb6 {[%emt 0:00:00]} 24. Bd1 {[%emt 0:00:00]} Qb5 {
[%emt 0:00:30]} 25. Rf2 {[%emt 0:00:00]} Na5 {[%emt 0:05:21]} 26. Rb2 {[%emt 0:
00:00]} Nb3 {[%emt 0:00:00]} 27. Qa2 {[%emt 0:00:00]} Bd8 {[%emt 0:02:15]} 28.
Qb1 {[%emt 0:00:00]} Qd7 {[%emt 0:00:29]} 29. g4 {[%emt 0:00:26]} fxg4 {
[%emt 0:00:31]} 30. Nh4 {[%emt 0:00:00]} O-O {[%emt 0:01:27]} 31. Nhf5 {
[%emt 0:01:28]} Qc6 {[%emt 0:00:08]} 32. Rg2 {[%emt 0:01:07]} g6 {[%emt 0:01:
44]} 33. Nh6+ {[%emt 0:02:18]} Kg7 {[%emt 0:00:00]} 34. Nhxg4 {[%emt 0:00:11]}
h5 {[%emt 0:00:34]} 35. Nf2 {[%emt 0:00:18]} Rh8 {[%emt 0:00:00]} 36. Nh1 {
[%emt 0:03:05]} h4 {[%emt 0:00:35]} 37. Bc2 {[%emt 0:03:01]} h3 {[%emt 0:00:00]
} 38. Rf2 {[%emt 0:00:02]} Bg5 {[%emt 0:00:00]} 39. Rf3 {[%emt 0:00:15]} a5 {
[%emt 0:00:04]} 40. Rg3 {[%emt 0:01:43]} Bf4 {[%emt 0:00:00]} 41. Rf3 {[%emt 0:
00:00]} Bh6 {[%emt 0:00:00]} 42. Nf2 {[%emt 0:00:00]} Be6 {[%emt 0:00:00]} 43.
Nfg4 {[%emt 0:00:00]} Bg5 {[%emt 0:00:00]} 44. Nf6 {[%emt 0:00:00]} a4 {
[%emt 0:00:00]} 45. Kh1 {[%emt 0:00:00]} Nd7 {[%emt 0:00:00]} 46. Rg3 {[%emt 0:
00:00]} Bf4 {[%emt 0:00:00]} 47. Rf3 {[%emt 0:00:00]} Bg5 {[%emt 0:00:00]} 48.
Rg3 {[%emt 0:00:00]} Bh4 {[%emt 0:00:00]} 49. Rg1 {[%emt 0:00:00]} Bxf6 {
[%emt 0:00:00]} 50. exf6+ {[%emt 0:00:00]} Nxf6 {[%emt 0:00:00]} 51. Bxg6 {
[%emt 0:00:00]} Kf8 {[%emt 0:00:00]} 52. Bg3 {[%emt 0:00:00]} Nd2 {[%emt 0:00:
00]} 53. Qb4+ {[%emt 0:00:00]} Ke8 {[%emt 0:00:00]} 54. Bc2 {[%emt 0:00:00]}
Nb3 {[%emt 0:00:00]} 55. Qb8+ {[%emt 0:00:00]} Bc8 {[%emt 0:01:11]} 56. Nf5 {
[%emt 0:00:00]} Kd7 {[%emt 0:00:26]} 57. Nd6 {[%emt 0:00:00]} Ne4 {[%emt 0:00:
10]} 58. Qa7+ {[%emt 0:00:00]} Bb7 {[%emt 0:00:09]} 59. Nxb7 {[%emt 0:00:34]}
Ke6 {[%emt 0:00:00]} 60. Rf1 {[%emt 0:01:33]} f5 {[%emt 0:00:00]} 61. Rxf5 {
[%emt 0:00:00]} Rh7 {[%emt 0:00:00]} 62. Nd8+ {[%emt 0:00:00]} Kxf5 {[%emt 0:
00:00]} 63. Qxh7+ {[%emt 0:00:00]} Qg6 {[%emt 0:00:00]} 64. Qd7+ {[%emt 0:00:
00]} Kg5 {[%emt 0:00:00]} 65. Nf7+ {[%emt 0:00:00]} 1-0

[Event "49th Biel Juniors Challenge"]
[Site "Biel"]
[Date "2016.07.26"]
[Round "6"]
[White "Studer, Noel"]
[Black "Rambaldi, Francesco"]
[Result "1/2-1/2"]
[ECO "A50"]
[WhiteElo "2462"]
[BlackElo "2544"]
[PlyCount "95"]
[EventDate "2016.??.??"]
[EventCountry "SUI"]
[Source "ChessBase"]
[TimeControl "40/6000+30:20/3000+30:900+30"]

1. d4 {[%emt 0:00:00]} Nf6 {[%emt 0:00:00]} 2. c4 {[%emt 0:00:00]} g6 {[%emt 0:
00:12]} 3. f3 {[%emt 0:00:00]} Nc6 {[%emt 0:01:27]} 4. d5 {[%emt 0:00:30]} Ne5
{[%emt 0:00:08]} 5. e4 {[%emt 0:00:30]} d6 {[%emt 0:00:57]} 6. Nc3 {[%emt 0:00:
41]} Bg7 {[%emt 0:00:12]} 7. f4 {[%emt 0:21:55]} Ned7 {[%emt 0:00:17]} 8. Nh3 {
[%emt 0:00:06]} O-O {[%emt 0:01:24]} 9. Be2 {[%emt 0:00:07]} Nb6 {[%emt 0:00:
46]} 10. Nf2 {[%emt 0:00:33]} e6 {[%emt 0:00:31]} 11. Be3 {[%emt 0:11:56]} exd5
{[%emt 0:01:52]} 12. cxd5 {[%emt 0:00:06]} c6 {[%emt 0:00:41]} 13. dxc6 {
[%emt 0:15:54]} bxc6 {[%emt 0:01:24]} 14. Qd2 {[%emt 0:00:06]} Be6 {[%emt 0:11:
01]} 15. O-O {[%emt 0:05:40]} d5 {[%emt 0:07:28]} 16. exd5 {[%emt 0:14:55]}
Nfxd5 {[%emt 0:04:44]} 17. Nxd5 {[%emt 0:00:07]} Nxd5 {[%emt 0:01:53]} 18. Bc5
{[%emt 0:00:11]} Re8 {[%emt 0:02:29]} 19. Rad1 {[%emt 0:01:45]} Qb8 {[%emt 0:
17:28]} 20. Nd3 {[%emt 0:02:28]} Bf5 {[%emt 0:00:03]} 21. Bf3 {[%emt 0:05:04]}
Qb5 {[%emt 0:27:28]} 22. Bf2 {[%emt 0:00:09]} Bh6 {[%emt 0:05:42]} 23. g3 {
[%emt 0:01:41]} Rad8 {[%emt 0:00:01]} 24. Nc5 {[%emt 0:03:48]} Bg7 {[%emt 0:01:
34]} 25. Nb3 {[%emt 0:01:31]} Bh3 {[%emt 0:04:51]} 26. Rfe1 {[%emt 0:00:58]}
Rxe1+ {[%emt 0:02:08]} 27. Rxe1 {[%emt 0:01:03]} Qb4 {[%emt 0:01:24]} 28. Re2 {
[%emt 0:04:38]} Qb8 {[%emt 0:03:30]} 29. Qa5 {[%emt 0:05:08]} Nb6 {[%emt 0:00:
03]} 30. Qe1 {[%emt 0:05:09]} Nc4 {[%emt 0:04:08]} 31. Nd4 {[%emt 0:01:15]} Bd7
{[%emt 0:07:28]} 32. b3 {[%emt 0:02:27]} c5 {[%emt 0:00:01]} 33. Nc6 {[%emt 0:
03:26]} Bxc6 {[%emt 0:00:01]} 34. Bxc6 {[%emt 0:00:04]} Nb2 {[%emt 0:01:48]}
35. Re8+ {[%emt 0:01:26]} Rxe8 {[%emt 0:00:18]} 36. Bxe8 {[%emt 0:00:39]} Qd8 {
[%emt 0:01:15]} 37. Bb5 {[%emt 0:00:53]} Bd4 {[%emt 0:00:02]} 38. Bf1 {[%emt 0:
00:50]} Nd1 {[%emt 0:00:21]} 39. Bxd4 {[%emt 0:00:44]} Qxd4+ {[%emt 0:00:01]}
40. Kh1 {[%emt 0:00:33]} Ne3 {[%emt 0:01:09]} 41. Qe2 {[%emt 0:08:07]} Kg7 {
[%emt 0:12:59]} 42. Qd3 {[%emt 0:00:40]} Qa1 {[%emt 0:13:52]} 43. Qxe3 {
[%emt 0:00:05]} Qxf1+ {[%emt 0:00:05]} 44. Qg1 {[%emt 0:00:03]} Qf3+ {[%emt 0:
00:05]} 45. Qg2 {[%emt 0:00:02]} Qd1+ {[%emt 0:00:06]} 46. Qg1 {[%emt 0:00:04]}
Qd5+ {[%emt 0:00:08]} 47. Qg2 {[%emt 0:00:04]} Qd1+ {[%emt 0:00:06]} 48. Qg1 {
[%emt 0:00:03]} 1/2-1/2

[Event "49th Biel Juniors Challenge"]
[Site "Biel"]
[Date "2016.07.28"]
[Round "7"]
[White "Rambaldi, Francesco"]
[Black "Studer, Noel"]
[Result "1/2-1/2"]
[ECO "D37"]
[WhiteElo "2544"]
[BlackElo "2462"]
[PlyCount "81"]
[EventDate "2016.??.??"]
[EventCountry "SUI"]
[Source "ChessBase"]
[TimeControl "40/6000+30:20/3000+30:900+30"]

1. d4 {[%emt 0:00:09]} e6 {[%emt 0:00:00]} 2. Nf3 {[%emt 0:00:36]} Nf6 {
[%emt 0:00:00]} 3. c4 {[%emt 0:00:12]} d5 {[%emt 0:00:00]} 4. Nc3 {[%emt 0:00:
32]} Nbd7 {[%emt 0:00:05]} 5. Bf4 {[%emt 0:02:01]} dxc4 {[%emt 0:00:08]} 6. e3
{[%emt 0:01:29]} b5 {[%emt 0:01:46]} 7. Nxb5 {[%emt 0:01:33]} Bb4+ {[%emt 0:00:
08]} 8. Nc3 {[%emt 0:00:42]} Nd5 {[%emt 0:00:09]} 9. a3 {[%emt 0:01:10]} Nxc3 {
[%emt 0:00:42]} 10. Qd2 {[%emt 0:00:07]} Nd5 {[%emt 0:00:27]} 11. axb4 {
[%emt 0:00:08]} Nxf4 {[%emt 0:00:07]} 12. exf4 {[%emt 0:00:05]} Nb6 {[%emt 0:
04:09]} 13. Be2 {[%emt 0:02:20]} Bb7 {[%emt 0:00:06]} 14. O-O {[%emt 0:01:02]}
Qd6 {[%emt 0:00:18]} 15. Ra5 {[%emt 0:05:28]} O-O {[%emt 0:05:16]} 16. Rc5 {
[%emt 0:02:43]} Rfb8 {[%emt 0:30:45]} 17. Ne5 {[%emt 0:14:17]} Bd5 {[%emt 0:00:
11]} 18. Bxc4 {[%emt 0:05:44]} Nxc4 {[%emt 0:06:23]} 19. Nxc4 {[%emt 0:00:12]}
Bxc4 {[%emt 0:00:04]} 20. Rxc4 {[%emt 0:00:04]} Rb7 {[%emt 0:00:03]} 21. Rfc1 {
[%emt 0:07:42]} Rab8 {[%emt 0:20:43]} 22. g3 {[%emt 0:00:39]} h5 {[%emt 0:02:
08]} 23. Qd1 {[%emt 0:38:45]} g6 {[%emt 0:07:11]} 24. b5 {[%emt 0:00:24]} Rd8 {
[%emt 0:04:38]} 25. Rc6 {[%emt 0:05:15]} Qd5 {[%emt 0:09:59]} 26. Rxc7 {
[%emt 0:02:22]} Rxb5 {[%emt 0:01:50]} 27. Rxa7 {[%emt 0:00:10]} Rxb2 {[%emt 0:
01:02]} 28. Ra4 {[%emt 0:00:43]} Rdb8 {[%emt 0:01:31]} 29. Rac4 {[%emt 0:02:02]
} Kg7 {[%emt 0:04:02]} 30. Rc5 {[%emt 0:01:55]} Qa2 {[%emt 0:02:02]} 31. Ra1 {
[%emt 0:09:15]} Rb1 {[%emt 0:01:34]} 32. Rxb1 {[%emt 0:00:42]} Rxb1 {[%emt 0:
00:01]} 33. Rc1 {[%emt 0:00:06]} Rb2 {[%emt 0:01:52]} 34. Qf1 {[%emt 0:01:37]}
Qd5 {[%emt 0:04:24]} 35. Rd1 {[%emt 0:01:45]} Qf3 {[%emt 0:00:29]} 36. Rd3 {
[%emt 0:00:45]} Qe4 {[%emt 0:00:08]} 37. Rd1 {[%emt 0:00:59]} Qf3 {[%emt 0:00:
36]} 38. Rd3 {[%emt 0:00:23]} Qe4 {[%emt 0:00:06]} 39. h4 {[%emt 0:02:48]} Re2
{[%emt 0:00:53]} 40. Rd1 {[%emt 0:00:02]} Qf3 {[%emt 0:00:33]} 41. Re1 {
[%emt 0:03:30]} 1/2-1/2

[Event "49th Biel Juniors Challenge"]
[Site "Biel"]
[Date "2016.07.29"]
[Round "8"]
[White "Studer, Noel"]
[Black "Rambaldi, Francesco"]
[Result "1/2-1/2"]
[ECO "E06"]
[WhiteElo "2462"]
[BlackElo "2544"]
[PlyCount "95"]
[EventDate "2016.??.??"]
[EventCountry "SUI"]
[Source "ChessBase"]
[TimeControl "40/6000+30:20/3000+30:900+30"]

1. d4 {[%emt 0:00:00]} Nf6 {[%emt 0:00:00]} 2. c4 {[%emt 0:00:00]} e6 {[%emt 0:
00:15]} 3. g3 {[%emt 0:00:00]} d5 {[%emt 0:00:06]} 4. Nf3 {[%emt 0:00:00]} Be7
{[%emt 0:00:42]} 5. Bg2 {[%emt 0:00:00]} O-O {[%emt 0:00:07]} 6. O-O {[%emt 0:
00:01]} dxc4 {[%emt 0:00:35]} 7. Qc2 {[%emt 0:00:09]} a6 {[%emt 0:00:42]} 8. a4
{[%emt 0:00:06]} Bd7 {[%emt 0:00:15]} 9. Qxc4 {[%emt 0:00:12]} Bc6 {[%emt 0:00:
08]} 10. Bf4 {[%emt 0:00:06]} Bd6 {[%emt 0:01:25]} 11. Qc1 {[%emt 0:00:37]} a5
{[%emt 0:03:33]} 12. Nc3 {[%emt 0:05:01]} Na6 {[%emt 0:06:19]} 13. Bg5 {
[%emt 0:00:21]} h6 {[%emt 0:01:17]} 14. Bh4 {[%emt 0:01:11]} Bxf3 {[%emt 0:00:
48]} 15. Bxf3 {[%emt 0:00:21]} c6 {[%emt 0:00:05]} 16. Ne4 {[%emt 0:11:44]} Be7
{[%emt 0:00:03]} 17. Bxf6 {[%emt 0:00:07]} Bxf6 {[%emt 0:00:05]} 18. Rd1 {
[%emt 0:00:04]} Be7 {[%emt 0:03:26]} 19. Qc3 {[%emt 0:25:02]} Qc7 {[%emt 0:05:
05]} 20. Rac1 {[%emt 0:00:08]} Rfd8 {[%emt 0:01:36]} 21. e3 {[%emt 0:02:49]}
Nb4 {[%emt 0:14:17]} 22. Qb3 {[%emt 0:00:25]} Ra6 {[%emt 0:04:12]} 23. Nd2 {
[%emt 0:04:35]} Nd5 {[%emt 0:14:09]} 24. Nc4 {[%emt 0:11:19]} Bf6 {[%emt 0:00:
46]} 25. Be2 {[%emt 0:01:35]} Raa8 {[%emt 0:00:46]} 26. f4 {[%emt 0:14:07]} Nb4
{[%emt 0:01:42]} 27. h4 {[%emt 0:00:40]} g6 {[%emt 0:05:03]} 28. Ne5 {[%emt 0:
09:10]} Qe7 {[%emt 0:02:06]} 29. Bf3 {[%emt 0:03:37]} Rac8 {[%emt 0:06:18]} 30.
Rc5 {[%emt 0:00:35]} Bxe5 {[%emt 0:06:18]} 31. fxe5 {[%emt 0:00:48]} b6 {
[%emt 0:00:53]} 32. Rc4 {[%emt 0:04:31]} c5 {[%emt 0:00:44]} 33. Qc3 {[%emt 0:
00:06]} Rc7 {[%emt 0:05:09]} 34. Be4 {[%emt 0:09:39]} Rdc8 {[%emt 0:09:07]} 35.
Qd2 {[%emt 0:00:16]} Qd7 {[%emt 0:02:40]} 36. b3 {[%emt 0:01:51]} cxd4 {
[%emt 0:02:51]} 37. Rxd4 {[%emt 0:00:06]} Qe7 {[%emt 0:00:35]} 38. Rd6 {
[%emt 0:01:35]} Rc3 {[%emt 0:06:39]} 39. Rf1 {[%emt 0:01:17]} Qc7 {[%emt 0:06:
19]} 40. Kh2 {[%emt 0:04:14]} Nd5 {[%emt 0:01:55]} 41. Rf3 {[%emt 0:10:09]} Qe7
{[%emt 0:27:08]} 42. Qd4 {[%emt 0:11:02]} Rxb3 {[%emt 0:03:50]} 43. Bxd5 {
[%emt 0:01:06]} Rc2+ {[%emt 0:02:09]} 44. Kg1 {[%emt 0:07:43]} Rb1+ {[%emt 0:
00:49]} 45. Rf1 {[%emt 0:00:05]} Rxf1+ {[%emt 0:00:05]} 46. Kxf1 {[%emt 0:00:
04]} exd5 {[%emt 0:00:10]} 47. Qxd5 {[%emt 0:01:30]} Rc5 {[%emt 0:02:51]} 48.
Rxg6+ {[%emt 0:04:37]} 1/2-1/2

[Event "49th Biel Juniors Challenge"]
[Site "Biel"]
[Date "2016.07.31"]
[Round "9"]
[White "Rambaldi, Francesco"]
[Black "Studer, Noel"]
[Result "1/2-1/2"]
[ECO "D37"]
[WhiteElo "2544"]
[BlackElo "2462"]
[PlyCount "102"]
[EventDate "2016.??.??"]
[EventCountry "SUI"]
[Source "ChessBase"]
[TimeControl "40/6000+30:20/3000+30:900+30"]

1. d4 {[%emt 0:00:00]} e6 {[%emt 0:00:00]} 2. c4 {[%emt 0:00:00]} Nf6 {[%emt 0:
00:00]} 3. Nf3 {[%emt 0:00:06]} d5 {[%emt 0:00:00]} 4. Nc3 {[%emt 0:00:10]}
Nbd7 {[%emt 0:00:00]} 5. Bg5 {[%emt 0:00:18]} h6 {[%emt 0:00:27]} 6. Bh4 {
[%emt 0:00:23]} Be7 {[%emt 0:00:08]} 7. e3 {[%emt 0:01:42]} O-O {[%emt 0:00:09]
} 8. Rc1 {[%emt 0:01:09]} c5 {[%emt 0:01:45]} 9. cxd5 {[%emt 0:03:45]} Nxd5 {
[%emt 0:00:12]} 10. Bxe7 {[%emt 0:00:24]} Nxe7 {[%emt 0:00:02]} 11. Be2 {
[%emt 0:05:46]} Qb6 {[%emt 0:25:28]} 12. b3 {[%emt 0:07:16]} Nf6 {[%emt 0:16:
45]} 13. O-O {[%emt 0:07:04]} cxd4 {[%emt 0:00:04]} 14. Qxd4 {[%emt 0:01:05]}
Qxd4 {[%emt 0:00:43]} 15. Nxd4 {[%emt 0:00:03]} Bd7 {[%emt 0:00:09]} 16. Bf3 {
[%emt 0:03:59]} Rab8 {[%emt 0:27:56]} 17. Ndb5 {[%emt 0:06:28]} a6 {[%emt 0:00:
07]} 18. Nd6 {[%emt 0:00:26]} b6 {[%emt 0:00:06]} 19. Rfd1 {[%emt 0:14:39]}
Rfd8 {[%emt 0:02:15]} 20. Bb7 {[%emt 0:06:33]} a5 {[%emt 0:00:55]} 21. Ba6 {
[%emt 0:00:34]} Kf8 {[%emt 0:04:17]} 22. e4 {[%emt 0:05:46]} g5 {[%emt 0:02:32]
} 23. f3 {[%emt 0:01:32]} Ng6 {[%emt 0:00:47]} 24. Kf2 {[%emt 0:04:24]} Bc6 {
[%emt 0:04:46]} 25. Bb5 {[%emt 0:04:05]} Bxb5 {[%emt 0:02:37]} 26. Ncxb5 {
[%emt 0:00:22]} Ne5 {[%emt 0:00:38]} 27. g3 {[%emt 0:09:05]} Rd7 {[%emt 0:02:
57]} 28. f4 {[%emt 0:08:40]} Ng6 {[%emt 0:00:04]} 29. Kf3 {[%emt 0:01:08]} gxf4
{[%emt 0:01:34]} 30. gxf4 {[%emt 0:00:01]} Nh5 {[%emt 0:00:28]} 31. Nc4 {
[%emt 0:03:52]} Rbd8 {[%emt 0:01:17]} 32. Rxd7 {[%emt 0:01:39]} Rxd7 {[%emt 0:
00:01]} 33. f5 {[%emt 0:05:07]} Rd3+ {[%emt 0:01:51]} 34. Kf2 {[%emt 0:00:12]}
exf5 {[%emt 0:00:08]} 35. exf5 {[%emt 0:00:06]} Nh4 {[%emt 0:00:38]} 36. Nxb6 {
[%emt 0:02:16]} Rf3+ {[%emt 0:09:53]} 37. Ke2 {[%emt 0:00:10]} Nf4+ {[%emt 0:
00:16]} 38. Kd2 {[%emt 0:00:09]} Nxf5 {[%emt 0:02:16]} 39. Re1 {[%emt 0:04:28]}
Rf2+ {[%emt 0:04:36]} 40. Kc3 {[%emt 0:00:02]} Rxa2 {[%emt 0:00:22]} 41. Rf1 {
[%emt 0:08:17]} Rc2+ {[%emt 0:01:45]} 42. Kxc2 {[%emt 0:00:01]} Ne3+ {[%emt 0:
00:06]} 43. Kc3 {[%emt 0:02:17]} Nxf1 {[%emt 0:00:05]} 44. h4 {[%emt 0:05:17]}
Ne3 {[%emt 0:02:59]} 45. Kd4 {[%emt 0:01:10]} Neg2 {[%emt 0:00:44]} 46. Nc4 {
[%emt 0:01:19]} Ne6+ {[%emt 0:00:33]} 47. Ke5 {[%emt 0:06:09]} Nxh4 {[%emt 0:
00:07]} 48. Nxa5 {[%emt 0:00:04]} Nf3+ {[%emt 0:00:20]} 49. Ke4 {[%emt 0:00:26]
} Neg5+ {[%emt 0:05:00]} 50. Kf4 {[%emt 0:00:37]} h5 {[%emt 0:00:52]} 51. Nd4 {
[%emt 0:01:12]} Nxd4 {[%emt 0:00:04] Ke4} 1/2-1/2

[Event "49th Biel Juniors Challenge"]
[Site "Biel"]
[Date "2016.08.01"]
[Round "10"]
[White "Studer, Noel"]
[Black "Rambaldi, Francesco"]
[Result "1/2-1/2"]
[ECO "A62"]
[WhiteElo "2462"]
[BlackElo "2544"]
[PlyCount "119"]
[EventDate "2016.??.??"]
[EventCountry "SUI"]
[Source "ChessBase"]
[TimeControl "40/6000+30:20/3000+30:900+30"]

1. d4 {[%emt 0:00:00]} Nf6 {[%emt 0:00:00]} 2. c4 {[%emt 0:00:00]} e6 {[%emt 0:
00:00]} 3. g3 {[%emt 0:00:00]} c5 {[%emt 0:00:23]} 4. d5 {[%emt 0:00:00]} exd5
{[%emt 0:00:06]} 5. cxd5 {[%emt 0:00:00]} d6 {[%emt 0:00:18]} 6. Nc3 {[%emt 0:
00:00]} g6 {[%emt 0:00:07]} 7. Bg2 {[%emt 0:00:00]} Bg7 {[%emt 0:00:07]} 8. Nf3
{[%emt 0:00:00]} O-O {[%emt 0:00:11]} 9. O-O {[%emt 0:00:02]} Re8 {[%emt 0:00:
13]} 10. Bf4 {[%emt 0:00:07]} Bf5 {[%emt 0:00:44]} 11. Nh4 {[%emt 0:00:05]} Bc8
{[%emt 0:00:10]} 12. Nf3 {[%emt 0:00:12]} Bf5 {[%emt 0:00:09]} 13. Nh4 {
[%emt 0:00:07]} Bc8 {[%emt 0:00:05]} 14. Qd2 {[%emt 0:00:07]} a6 {[%emt 0:02:
15]} 15. a4 {[%emt 0:00:16]} Qe7 {[%emt 0:00:07]} 16. Rfe1 {[%emt 0:07:02]}
Nbd7 {[%emt 0:01:20]} 17. Nf3 {[%emt 0:00:13]} Rb8 {[%emt 0:04:47]} 18. Rab1 {
[%emt 0:00:32]} Ng4 {[%emt 0:01:23]} 19. Qc2 {[%emt 0:17:51]} Nde5 {[%emt 0:11:
03]} 20. Nxe5 {[%emt 0:30:47]} Nxe5 {[%emt 0:00:53]} 21. b4 {[%emt 0:02:26]}
cxb4 {[%emt 0:07:01]} 22. Rxb4 {[%emt 0:02:51]} Bf5 {[%emt 0:04:34]} 23. Ne4 {
[%emt 0:21:07]} a5 {[%emt 0:20:32]} 24. Rb5 {[%emt 0:00:07]} Ng4 {[%emt 0:07:
35]} 25. Bxd6 {[%emt 0:01:00]} Qxd6 {[%emt 0:03:42]} 26. Nxd6 {[%emt 0:00:05]}
Bxc2 {[%emt 0:00:02]} 27. Nxe8 {[%emt 0:00:04]} Rxe8 {[%emt 0:00:03]} 28. Rxb7
{[%emt 0:03:31]} Bxa4 {[%emt 0:01:32]} 29. h3 {[%emt 0:00:45]} Ne5 {[%emt 0:01:
13]} 30. Rc1 {[%emt 0:00:19]} Nd7 {[%emt 0:09:58]} 31. e3 {[%emt 0:07:25]} Bf8
{[%emt 0:01:45]} 32. Ra1 {[%emt 0:00:08]} Nc5 {[%emt 0:11:28]} 33. Ra7 {
[%emt 0:00:28]} Bg7 {[%emt 0:00:43]} 34. Rc1 {[%emt 0:01:06]} Bf8 {[%emt 0:00:
05]} 35. Ra1 {[%emt 0:01:31]} Bg7 {[%emt 0:00:37]} 36. Rc1 {[%emt 0:10:24]} Bf8
{[%emt 0:00:02]} 37. Rc3 {[%emt 0:00:07]} Nd7 {[%emt 0:05:38]} 38. Rcc7 {
[%emt 0:02:18]} Bc5 {[%emt 0:00:59]} 39. Rxa5 {[%emt 0:05:52]} Bb6 {[%emt 0:00:
48]} 40. Rxa4 {[%emt 0:00:04]} Bxc7 {[%emt 0:00:06]} 41. Ra7 {[%emt 0:50:01]}
Rc8 {[%emt 0:52:26]} 42. d6 {[%emt 0:00:36]} Bxd6 {[%emt 0:00:08]} 43. Rxd7 {
[%emt 0:00:04]} Rc1+ {[%emt 0:03:07]} 44. Kh2 {[%emt 0:00:00]} Rd1 {[%emt 0:00:
00]} 45. Bc6 {[%emt 0:00:00]} Kf8 {[%emt 0:00:00]} 46. Kg2 {[%emt 0:00:00]} Rd2
{[%emt 0:00:00]} 47. e4 {[%emt 0:00:00]} Bb4 {[%emt 0:00:00]} 48. Bd5 {[%emt 0:
00:00]} Be7 {[%emt 0:00:00]} 49. h4 {[%emt 0:00:00]} h6 {[%emt 0:00:00]} 50.
Kf3 {[%emt 0:00:00]} g5 {[%emt 0:00:00]} 51. h5 {[%emt 0:00:00]} Rc2 {[%emt 0:
00:00]} 52. Rb7 {[%emt 0:00:00]} Rd2 {[%emt 0:00:00]} 53. Rc7 {[%emt 0:00:00]}
Rb2 {[%emt 0:00:00]} 54. Ke3 {[%emt 0:00:00]} g4 {[%emt 0:00:00]} 55. e5 {
[%emt 0:00:00]} Bg5+ {[%emt 0:00:00]} 56. f4 {[%emt 0:00:00]} gxf3+ {[%emt 0:
00:00]} 57. Kxf3 {[%emt 0:00:00]} Be7 {[%emt 0:00:00]} 58. Rc4 {[%emt 0:00:00]}
Rb3+ {[%emt 0:00:00]} 59. Kf4 {[%emt 0:00:00]} Rb4 {[%emt 0:00:00]} 60. Ke4
1/2-1/2